bitfinex-derivatives/quotes_ETHF0:USTF0_20241129
["timestamp","ask_amount","ask_price","bid_price","bid_amount"]
[1732894986982,5.2018,3627.2,3627.1,0.002]
[1732894987974,0.27543,3626.9,3626.7,0.27543]
[1732894988172,3.2078,3626.8,3626.2,0.8383]
[1732894988386,3.48324,3626.8,3626.2,0.8383]
[1732894988580,3.48323,3626.8,3626.7,0.27544]
[1732894988784,3.2078,3626.8,3626.2,0.8383]
[1732894988974,3.2078,3626.8,3626.7,0.27544]
[1732894989179,6.1774,3627.2,3627.1,0.27741]
[1732894989378,0.27539,3627.4,3627.1,41.07741]
[1732894989579,1.251,3627.6,3627.5,0.27538]
[1732894989880,1.251,3627.6,3627.1,40.802]
[1732894990081,0.2754,3627.2,3627.1,40.802]
[1732894990280,0.2754,3627.2,3627.1,0.002]
[1732894990479,0.27543,3626.9,3626.6,0.27544]
[1732894990785,0.27543,3626.9,3626.7,0.27543]
[1732894990988,0.27542,3627.0,3626.8,0.27543]
[1732894991383,1.2645442,3627.1,3626.3,4.036]
[1732894991582,1.2645442,3627.1,3627.0,0.27542]
[1732894991778,0.0135442,3627.1,3627.0,0.27542]
[1732894992482,4.2e-06,3627.1,3627.0,0.27542]
[1732894992787,4.2e-06,3627.1,3627.0,41.07542]
[1732894992990,4.2e-06,3627.1,3627.0,47.40542]
[1732894993282,4.2e-06,3627.1,3627.0,46.07542]
[1732894993986,4.2e-06,3627.1,3627.0,48.34542]
[1732894994781,0.002,3628.5,3627.0,48.07]
[1732894994782,4.2e-06,3628.5,3627.0,48.07]
[1732894994982,4.2e-06,3628.5,3628.4,0.27531]
[1732894995186,4.2e-06,3628.5,3628.4,6.08711]
[1732894995391,4.2e-06,3628.5,3628.4,6.93201]
[1732894995784,4.2e-06,3628.5,3628.4,47.73201]
[1732894996884,0.8484,3629.8,3628.4,47.4567]
[1732894997087,0.8484,3629.8,3629.1,3.2078]
[1732894997286,0.8484,3629.8,3629.7,0.27521]
[1732894997482,0.27525,3629.3,3628.9,0.27527]
[1732894997681,0.27528,3628.9,3628.6,3.2078]
[1732894997887,0.8899,3628.8,3628.7,0.27529]
[1732894998882,3.2078,3629.4,3628.6,3.2078]
[1732894999084,4.37294,3629.4,3629.1,0.27525]
[1732894999282,4.37294,3629.4,3629.2,0.27525]
[1732894999488,4.37494,3629.4,3629.2,0.27525]
[1732894999686,4.0997,3629.4,3628.6,3.2078]
[1732894999887,4.0997,3629.4,3629.3,0.27524]
[1732895001996,0.8919,3629.4,3629.3,0.27524]
[1732895004194,0.27525,3629.3,3628.6,0.27529]
[1732895004399,0.8919,3629.4,3629.0,0.27526]
[1732895004600,0.27525,3629.3,3629.1,0.27526]
[1732895004893,1.16713,3629.4,3629.2,0.27524]
[1732895005500,1.16713,3629.4,3628.5,4.0264]
[1732895005501,0.8919,3629.4,3629.3,0.27524]
[1732895006094,0.002,3629.4,3629.3,0.27524]
[1732895006693,0.002,3629.4,3628.9,3.2078]
[1732895006901,0.002,3629.4,3629.1,0.27525]
[1732895007093,0.002,3629.4,3628.9,3.2078]
[1732895007094,0.27525,3629.2,3629.0,0.27526]
[1732895007294,0.002,3629.4,3628.9,3.2078]
[1732895007490,0.27526,3629.0,3628.9,3.2078]
[1732895007693,0.27526,3629.0,3628.9,3.48307]
[1732895007893,0.27526,3629.0,3628.9,3.2078]
[1732895008097,0.27529,3628.6,3628.5,0.2753]
[1732895008295,2.64235206,3628.7,3627.9,3.2078]
[1732895008606,0.27531,3628.4,3628.3,0.27531]
[1732895008797,0.27527,3628.9,3628.8,0.27527]
[1732895009000,0.27529,3628.7,3628.6,0.27529]
[1732895009200,2.64235206,3629.1,3628.2,3.2078]
[1732895009396,2.64235206,3629.1,3628.4,0.2753]
[1732895009397,0.27531,3628.5,3628.4,0.2753]
[1732895009694,0.27532,3628.3,3628.2,3.48312]
[1732895009899,0.27532,3628.3,3628.2,3.2078]
[1732895010104,2.64235206,3628.7,3628.2,3.2078]
[1732895010105,3.52155206,3628.7,3628.2,3.2078]
[1732895010309,0.27531,3628.4,3628.3,0.27531]
[1732895010506,0.2753,3628.6,3628.5,0.2753]
[1732895010705,3.52155206,3628.7,3628.2,3.2078]
[1732895010906,3.52155206,3628.7,3628.4,0.2753]
[1732895010907,0.27531,3628.5,3628.4,0.2753]
[1732895011803,3.52155206,3628.7,3628.2,3.2078]
[1732895012004,0.27531,3628.4,3628.3,0.27531]
[1732895012206,0.27532,3628.3,3628.2,3.2078]
[1732895012503,2.91767206,3628.3,3628.2,3.2078]
[1732895013408,0.27532,3628.3,3628.2,3.2078]
[1732895014810,0.27531,3628.4,3628.2,3.2078]
[1732895015009,0.27531,3628.4,3628.3,0.27531]
[1732895015205,2.64235206,3628.5,3628.2,3.2078]
[1732895015401,0.27532,3628.3,3628.2,3.48312]
[1732895015607,0.27532,3628.3,3628.2,3.2078]
[1732895015802,0.27532,3628.3,3627.6,0.002]
[1732895015803,0.68834,3628.2,3627.6,0.002]
[1732895016015,0.68834,3628.2,3627.2,0.2754]
[1732895016016,0.68844,3627.6,3627.2,0.2754]
[1732895016207,0.68844,3627.6,3627.0,0.27541]
[1732895016208,0.27541,3627.1,3627.0,0.27541]
[1732895016609,0.27542,3627.0,3626.9,0.27541]
[1732895016913,0.2754,3627.2,3627.1,0.2754]
[1732895017219,1.7689,3627.5,3626.7,44.0078]
[1732895017507,0.27541,3627.2,3627.1,0.2754]
[1732895017808,0.27541,3627.1,3627.0,0.27541]
[1732895018002,0.2754,3627.2,3627.1,0.2754]
[1732895018815,0.27543,3626.8,3626.7,44.28323]
[1732895019015,0.27543,3626.9,3626.8,0.27543]
[1732895019207,2.64235206,3627.2,3626.7,3.2078]
[1732895019515,0.27541,3627.1,3627.0,0.27541]
[1732895019915,2.64235206,3627.2,3626.7,3.2078]
[1732895020214,5.85015206,3627.2,3626.7,3.2078]
[1732895020415,0.27543,3626.8,3626.7,3.48323]
[1732895020613,0.27543,3626.9,3626.8,0.27543]
[1732895020812,3.2078,3627.2,3626.7,3.2078]
[1732895021111,5.85015206,3627.2,3626.7,3.2078]
[1732895021411,0.27542,3627.0,3626.9,0.27542]
[1732895021614,0.27542,3627.0,3626.7,3.2078]
[1732895021615,0.27543,3626.9,3626.8,0.27543]
[1732895022317,0.27542,3627.0,3626.9,0.27542]
[1732895022707,5.85015206,3627.2,3626.7,3.2078]
[1732895022910,3.2078,3627.2,3626.7,3.2078]
[1732895023115,0.27541,3627.1,3627.0,0.27541]
[1732895023312,0.27541,3627.2,3627.1,0.2754]
[1732895024120,0.27542,3627.1,3627.0,0.27541]
[1732895025215,0.27542,3627.0,3626.9,0.27542]
[1732895025621,0.27543,3626.8,3626.7,3.2078]
[1732895025817,0.27543,3626.8,3626.7,3.48324]
[1732895026211,2.49900717,3626.8,3626.7,3.48324]
[1732895026618,2.49900717,3626.8,3626.7,3.2078]
[1732895027117,2.49900717,3626.8,3626.7,3.48324]
[1732895027720,2.49900717,3626.8,3626.7,3.2078]
[1732895029213,2.49900717,3626.8,3626.7,3.48324]
[1732895029421,2.49900717,3626.8,3626.7,3.2078]
[1732895029727,2.49900717,3626.8,3626.7,3.2098]
[1732895030327,2.49900717,3626.8,3626.7,3.48524]
[1732895030525,2.49900717,3626.8,3626.7,3.2098]
[1732895032025,2.49900717,3626.8,3626.7,3.48524]
[1732895032216,2.49900717,3626.8,3626.7,3.2098]
[1732895032624,0.27548,3626.2,3625.7,3.2078]
[1732895032828,2.22357717,3625.8,3625.7,3.48331]
[1732895033023,2.49908717,3625.8,3625.7,3.48331]
[1732895033925,2.22357717,3625.8,3625.7,3.48331]
[1732895034826,2.49908717,3625.8,3625.7,3.48331]
[1732895035027,2.22357717,3625.8,3625.7,3.48331]
[1732895035628,2.49908717,3625.8,3625.7,3.48331]
[1732895035823,2.49908717,3625.8,3625.7,3.2078]
[1732895036425,2.49908717,3625.8,3625.2,1.6969]
[1732895036426,0.27554,3625.5,3625.4,0.27553]
[1732895036815,2.22357717,3625.8,3625.2,4.9047]
[1732895037018,2.22357717,3625.8,3625.7,0.27551]
[1732895037019,2.49908717,3625.8,3625.7,0.27551]
[1732895037221,2.22357717,3625.8,3625.7,0.27551]
[1732895037627,2.49908717,3625.8,3625.7,0.27551]
[1732895038422,2.22357717,3625.8,3625.7,0.27551]
[1732895038825,2.49908717,3625.8,3625.7,0.27551]
[1732895039024,2.49908717,3625.8,3625.2,5.59359]
[1732895039025,0.27552,3625.7,3625.6,0.27551]
[1732895039227,0.27552,3625.7,3625.6,41.07551]
[1732895039423,2.22357717,3625.8,3625.2,5.59359]
[1732895039424,2.22357717,3625.8,3625.5,0.27553]
[1732895039622,2.22357717,3625.8,3625.2,4.9047]
[1732895039623,2.22357717,3625.4,3625.3,0.27554]
[1732895040027,2.22357717,3625.4,3625.3,41.07554]
[1732895040230,2.22357717,3625.4,3625.2,0.8229]
[1732895040425,2.49911717,3625.4,3625.3,0.27554]
[1732895040928,0.27558,3625.0,3624.9,0.27557]
[1732895041125,2.22357717,3625.0,3624.9,0.27557]
[1732895041632,0.27558,3624.9,3624.8,3.48338]
[1732895041835,0.27558,3624.9,3624.8,3.2078]
[1732895042128,0.27558,3624.9,3624.8,3.48338]
[1732895042527,2.22357717,3625.0,3624.8,3.2078]
[1732895042720,2.49915717,3625.0,3624.9,0.27558]
[1732895044340,2.49914717,3625.0,3624.9,0.27558]
[1732895044631,2.49914717,3625.0,3624.9,0.27758]
[1732895045126,2.22357717,3625.0,3624.9,0.27758]
[1732895045825,0.27562,3624.4,3623.8,3.2078]
[1732895046025,0.27564,3624.1,3624.0,0.27564]
[1732895046225,0.27564,3624.1,3623.8,3.2078]
[1732895046226,4.4288,3624.1,3623.2,0.68926]
[1732895046429,0.27566,3623.9,3623.8,0.27566]
[1732895046636,4.4288,3624.1,3623.3,1.741]
[1732895046831,4.4288,3624.1,3623.7,0.27567]
[1732895046832,2.49923717,3623.8,3623.7,0.27567]
[1732895047132,2.22357717,3623.8,3623.3,1.741]
[1732895047522,2.49923717,3623.8,3623.7,0.27567]
[1732895047927,2.22357717,3623.8,3623.3,1.741]
[1732895048229,0.27568,3623.6,3623.5,0.27568]
[1732895048425,2.63159739,3623.8,3623.3,1.741]
[1732895048631,0.27568,3623.6,3623.5,0.27568]
[1732895048828,0.27567,3623.7,3623.6,0.27567]
[1732895049022,2.63159739,3623.8,3623.3,1.741]
[1732895049226,2.63159739,3623.8,3623.7,0.27567]
[1732895049632,2.63159739,3623.8,3623.3,1.741]
[1732895050221,2.90728739,3623.4,3623.3,2.01669]
[1732895050629,2.63159739,3623.4,3623.3,2.01669]
[1732895051230,2.90728739,3623.4,3623.3,2.01669]
[1732895051428,2.63159739,3623.4,3623.3,2.01669]
[1732895051636,2.63159739,3623.4,3623.0,3.2078]
[1732895051823,2.63159739,3623.4,3623.0,3.5378]
[1732895052027,2.63159739,3623.4,3623.3,0.2757]
[1732895052229,2.90728739,3623.4,3623.3,0.2757]
[1732895052626,2.63159739,3623.4,3623.3,0.2757]
[1732895052828,2.63159739,3623.4,3623.0,3.2078]
[1732895053025,2.63159739,3623.4,3623.3,0.2757]
[1732895053639,0.2757,3623.3,3623.2,0.2757]
[1732895053838,2.63159739,3623.4,3623.3,0.2757]
[1732895054040,3.53529739,3623.8,3623.7,0.27567]
[1732895054344,4.12925739,3623.8,3623.7,0.27567]
[1732895054635,0.27569,3623.5,3623.4,0.27568]
[1732895054931,0.27568,3623.5,3623.4,41.07568]
[1732895055126,0.27568,3623.6,3623.5,0.27568]
[1732895055330,0.27569,3623.5,3623.4,0.27569]
[1732895055530,1.92019,3623.5,3623.4,0.27569]
[1732895055732,0.2757,3623.3,3623.2,0.2757]
[1732895056035,2.63159739,3623.3,3623.2,0.2757]
[1732895056744,2.63159739,3623.3,3623.1,40.8]
[1732895057133,0.2757,3623.2,3623.1,41.0757]
[1732895057734,0.2757,3623.2,3623.1,0.2757]
[1732895058242,2.63159739,3623.3,3622.5,3.89719]
[1732895058434,2.63159739,3622.9,3622.8,0.27573]
[1732895058933,2.90732739,3622.9,3622.8,0.27573]
[1732895059336,2.63159739,3622.9,3622.5,3.2078]
[1732895059538,2.90732739,3622.9,3622.8,0.002]
[1732895060232,3.81442739,3622.9,3622.8,0.002]
[1732895060438,0.27576,3622.5,3622.4,0.27576]
[1732895060647,2.90735739,3622.5,3622.4,0.27576]
[1732895060838,2.63159739,3622.5,3622.4,0.27576]
[1732895063443,3.2078,3623.4,3623.2,0.2757]
[1732895063641,4.12926739,3623.7,3623.6,0.27567]
[1732895063840,3.85359739,3623.7,3623.0,0.8255]
[1732895064039,6.11510739,3623.2,3623.1,0.27571]
[1732895064238,5.83939739,3623.2,3623.1,41.07571]
[1732895064444,2.63159739,3623.2,3623.1,0.27571]
[1732895064643,2.90729739,3623.2,3623.1,0.27571]
[1732895064843,2.63159739,3623.2,3623.1,0.27571]
[1732895065461,2.90729739,3623.2,3623.1,0.27571]
[1732895065744,2.63159739,3623.2,3623.1,0.27571]
[1732895065949,2.90729739,3623.2,3623.1,0.27571]
[1732895066357,0.27571,3623.1,3623.0,0.27571]
[1732895066544,2.63159739,3623.2,3622.8,0.002]
[1732895066944,0.27573,3622.9,3622.8,0.002]
[1732895067148,3.48353,3622.9,3622.8,0.002]
[1732895067346,3.48353,3622.9,3622.8,0.27773]
[1732895067847,3.48353,3622.9,3622.5,0.007762]
[1732895067848,3.89713,3622.9,3622.5,0.007762]
[1732895068147,2.90734739,3622.6,3622.5,0.007762]
[1732895068348,2.35618118,3622.6,3622.5,0.007762]
[1732895069444,2.35618118,3622.6,3622.5,0.283522]
[1732895069445,2.08043118,3622.6,3622.5,0.283522]
[1732895070447,3.00500204,3623.2,3622.5,0.283522]
[1732895070448,3.2078,3623.3,3623.2,0.2757]
[1732895070649,5.28823118,3623.3,3623.2,0.2757]
[1732895070850,2.08043118,3623.3,3623.2,0.2757]
[1732895071749,0.002,3624.1,3623.7,0.27567]
[1732895071950,0.002,3624.1,3624.0,0.27564]
[1732895073252,2.08043118,3624.4,3624.3,0.27562]
[1732895074869,2.08043118,3625.2,3625.1,0.27556]
[1732895076153,4.4148,3625.8,3625.7,0.27551]
[1732895076360,4.4148,3625.8,3625.0,0.68892]
[1732895076653,4.4148,3625.8,3625.7,0.27551]
[1732895076654,3.48331,3625.8,3625.7,0.27551]
[1732895076956,0.27551,3625.7,3625.5,0.27552]
[1732895077249,0.27555,3625.3,3625.2,0.27555]
[1732895077455,2.90388293,3625.3,3625.2,0.27555]
[1732895077848,2.62833293,3625.3,3625.2,0.27555]
[1732895079051,2.90387293,3625.3,3625.2,0.27555]
[1732895079349,2.62833293,3625.3,3625.2,0.27555]
[1732895079549,0.27558,3624.9,3624.8,0.27558]
[1732895079748,2.62833293,3624.9,3624.7,0.8973]
[1732895079955,2.62833293,3624.9,3624.8,0.27558]
[1732895080160,2.90391293,3624.9,3624.8,2.14558]
[1732895080758,2.90391293,3624.9,3624.8,1.87]
[1732895081060,0.27565,3624.0,3623.7,3.2078]
[1732895081262,2.62833293,3624.1,3624.0,0.27564]
[1732895081757,2.90397293,3624.1,3624.0,0.27564]
[1732895081963,2.62833293,3624.1,3623.7,3.2078]
[1732895082364,2.62833293,3624.1,3623.2,1.53477]
[1732895082365,3.2078,3624.0,3623.2,0.8455]
[1732895082561,2.62833293,3623.4,3623.3,0.2757]
[1732895082767,2.62833293,3623.4,3623.3,1.0357]
[1732895083158,0.2757,3623.3,3623.2,0.2757]
[1732895083462,2.62833293,3623.4,3623.0,0.002]
[1732895083862,2.90402293,3623.4,3623.3,0.2757]
[1732895084365,2.62833293,3623.4,3623.3,0.2757]
[1732895084562,2.90402293,3623.4,3623.3,0.2757]
[1732895084764,2.62833293,3623.4,3623.0,0.002]
[1732895084960,2.62833293,3623.4,3623.1,0.27571]
[1732895085159,2.62833293,3623.4,3623.0,0.002]
[1732895085468,2.62833293,3623.4,3623.3,0.2757]
[1732895086265,2.62833293,3623.4,3623.0,0.002]
[1732895086266,0.2757,3623.3,3623.2,0.2757]
[1732895086458,2.90402293,3623.4,3623.3,0.2757]
[1732895086863,2.90402293,3623.4,3623.0,0.002]
[1732895086864,2.62833293,3623.4,3623.0,0.002]
[1732895087064,0.27571,3623.1,3623.0,0.27772]
[1732895087261,0.27571,3623.1,3623.0,0.002]
[1732895087660,0.27573,3622.9,3622.8,0.27573]
[1732895087860,2.62833293,3623.0,3622.9,0.002]
[1732895088058,2.90405293,3623.0,3622.9,0.002]
[1732895089765,0.27575,3622.6,3622.5,0.007762]
[1732895089962,6.11188293,3622.6,3622.5,0.007762]
[1732895095466,2.62833293,3623.0,3622.5,0.283522]
[1732895095666,6.11185293,3623.0,3622.9,0.27773]
[1732895095872,4.69052,3623.0,3622.9,0.27773]
[1732895096377,0.68917,3623.7,3622.9,0.27773]
[1732895096378,0.002,3624.2,3622.9,3.2098]
[1732895096576,0.002,3624.2,3624.1,0.27564]
[1732895099271,0.27559,3624.8,3624.7,0.27559]
[1732895099571,0.27563,3624.2,3624.1,0.27563]
[1732895099770,0.002,3624.3,3624.2,0.27563]
[1732895099978,1.209,3624.3,3624.2,0.27563]
[1732895100272,1.209,3624.3,3623.7,0.68917]
[1732895100574,1.209,3624.3,3623.6,0.8286]
[1732895101171,0.27565,3624.0,3623.9,0.27565]
[1732895101374,1.206,3624.1,3623.6,0.8286]
[1732895101670,1.206,3624.1,3623.1,3.2078]
[1732895101671,1.206,3624.1,3624.0,0.27564]
[1732895102172,3.2078,3624.2,3623.7,0.68917]
[1732895102471,3.2078,3624.2,3624.1,0.27564]
[1732895102665,0.002,3624.4,3623.8,0.68915]
[1732895102874,0.002,3624.4,3624.3,0.27562]
[1732895103773,0.002,3624.4,3623.9,0.8352]
[1732895103979,3.2078,3624.3,3624.2,0.27562]
[1732895104377,1.208,3624.4,3624.3,0.27562]
[1732895104876,0.002,3624.4,3624.3,0.27562]
[1732895105071,0.002,3624.4,3624.3,3.48342]
[1732895105274,3.2078,3625.1,3625.0,0.27557]
[1732895105769,0.002,3624.5,3624.4,0.27561]
[1732895106572,0.002,3624.5,3624.4,0.89561]
[1732895107170,0.2756,3624.6,3624.4,0.62]
[1732895107475,0.2756,3624.6,3624.5,0.27561]
[1732895107878,0.002,3624.4,3624.3,3.48342]
[1732895108485,0.27761,3624.4,3624.3,3.48342]
[1732895108679,0.27761,3624.4,3624.3,3.2078]
[1732895109080,0.002,3624.4,3624.3,3.48342]
[1732895109471,0.002,3624.4,3623.4,0.8322]
[1732895109472,5.002,3624.4,3623.6,3.2078]
[1732895109677,5.002,3624.4,3623.4,0.8322]
[1732895109678,2.63039785,3623.9,3623.1,0.002]
[1732895109884,1.206,3623.8,3623.7,0.27567]
[1732895110479,3.2078,3624.1,3624.0,0.27564]
[1732895110677,0.002,3624.3,3624.2,0.27563]
[1732895111379,5.84019785,3624.3,3623.5,0.68921]
[1732895111587,5.84019785,3624.3,3623.8,0.27565]
[1732895111588,0.27566,3623.9,3623.8,0.27565]
[1732895112179,0.27568,3623.6,3623.3,0.8332]
[1732895112388,0.27567,3623.7,3623.6,0.27567]
[1732895112779,5.97794683,3623.9,3623.0,0.002]
[1732895112974,5.97794683,3623.9,3622.5,0.697142]
[1732895112975,3.48351,3623.1,3622.5,0.697142]
[1732895113183,3.48351,3623.1,3623.0,0.27772]
[1732895113480,3.48351,3623.1,3623.0,0.002]
[1732895113877,0.27573,3623.0,3622.9,0.27572]
[1732895114077,3.48352,3623.1,3623.0,0.27572]
[1732895114277,3.2078,3623.1,3623.0,0.27572]
[1732895114481,6.74204126,3624.5,3623.0,0.27572]
[1732895114482,5.83819785,3624.2,3623.7,0.27567]
[1732895114681,3.43684772,3624.2,3623.7,0.27567]
[1732895114982,3.2078,3624.2,3623.6,0.68918]
[1732895115189,0.27565,3624.1,3624.0,0.27564]
[1732895115487,3.2078,3624.2,3623.7,40.8]
[1732895115488,0.27566,3623.8,3623.7,40.8]
[1732895115686,0.27564,3624.1,3624.0,0.27564]
[1732895115882,3.2078,3624.2,3624.1,0.27564]
[1732895116083,4.4138,3624.2,3624.1,0.27564]
[1732895116783,1.206,3624.2,3624.1,0.27564]
[1732895117387,1.48163,3624.2,3624.1,0.27564]
[1732895117888,1.48163,3624.2,3623.6,40.8]
[1732895117889,1.206,3624.2,3623.6,40.8]
[1732895118079,1.206,3624.2,3624.1,0.27564]
[1732895118280,1.48163,3624.2,3624.1,0.27564]
[1732895118490,7.04419785,3624.2,3623.4,3.2078]
[1732895118683,3.2078,3623.6,3623.1,0.8853]
[1732895119179,0.2757,3623.2,3623.1,1.16101]
[1732895119388,0.2757,3623.2,3623.1,0.27571]
[1732895119389,3.2078,3623.2,3623.1,0.27571]
[1732895119576,1.4817,3623.3,3623.2,0.2757]
[1732895119782,1.4817,3623.3,3623.0,0.002]
[1732895119783,1.206,3623.3,3623.0,0.002]
[1732895119980,1.206,3623.3,3623.2,0.2757]
[1732895120187,0.8886,3623.5,3623.2,0.2757]
[1732895120188,3.2078,3624.2,3623.2,3.2078]
[1732895120382,3.2078,3624.2,3624.1,0.27564]
[1732895125485,3.2078,3624.6,3623.7,3.2078]
[1732895125690,0.002,3624.6,3624.5,0.27561]
[1732895126188,0.002,3624.6,3624.5,0.48561]
[1732895126584,1e-05,3624.6,3624.5,0.48561]
[1732895127186,3.2078,3625.4,3625.3,0.27554]
[1732895130986,3.48334,3625.4,3625.3,0.27554]
[1732895131293,3.2078,3625.4,3625.3,0.27554]
[1732895134087,0.27558,3624.9,3624.8,0.27558]
[1732895134299,3.2078,3624.9,3624.8,0.27558]
[1732895134489,3.48338,3624.9,3624.8,0.27558]
[1732895134695,3.2078,3624.9,3624.8,0.27558]
[1732895135884,0.002,3625.0,3624.8,8.588699]
[1732895136088,4.0689,3626.6,3626.5,0.27545]
[1732895136289,4.0689,3626.6,3626.0,0.8975]
[1732895136491,3.2078,3626.2,3625.4,40.8]
[1732895136685,3.2078,3625.7,3625.6,0.27552]
[1732895136887,3.2078,3625.7,3625.3,0.8975]
[1732895136888,0.27553,3625.5,3625.4,0.27553]
[1732895137197,0.27553,3625.5,3625.0,0.27557]
[1732895137198,0.002,3625.1,3625.0,0.27557]
[1732895137386,3.2098,3625.1,3625.0,0.27557]
[1732895137896,0.002,3625.1,3625.0,0.27557]
[1732895138090,1e-05,3625.1,3625.0,0.27557]
[1732895139294,1e-05,3625.1,3625.0,41.07557]
[1732895139688,1e-05,3625.1,3625.0,46.07557]
[1732895139889,3.2078,3626.0,3625.2,0.68889]
[1732895140090,4.9171,3626.5,3626.4,0.27546]
[1732895140591,5.19255,3626.5,3626.4,0.27546]
[1732895141097,0.27547,3626.4,3626.3,0.27546]
[1732895141293,4.9171,3626.5,3626.0,0.8493]
[1732895141596,3.2078,3626.1,3626.0,0.27549]
[1732895141895,0.2755,3626.0,3625.9,0.27549]
[1732895142396,3.2078,3626.1,3625.4,0.68885]
[1732895142600,3.2078,3626.1,3625.3,0.8664]
[1732895142896,4.75029,3626.1,3626.0,0.27549]
[1732895143095,3.2078,3626.1,3625.3,0.8664]
[1732895143398,4.75029,3626.1,3626.0,0.27549]
[1732895143597,4.4748,3626.1,3626.0,0.27549]
[1732895144295,4.75028,3626.1,3626.0,0.27549]
[1732895144502,4.4748,3626.1,3626.0,0.27549]
[1732895144797,3.2078,3626.1,3626.0,0.27549]
[1732895146399,0.002,3625.6,3625.3,0.8664]
[1732895146604,3.2078,3625.5,3625.4,0.27554]
[1732895149712,3.48333,3625.5,3624.9,1.52504]
[1732895150001,3.2078,3625.1,3625.0,0.27557]
[1732895150207,3.48336,3625.1,3625.0,0.27557]
[1732895150703,3.2078,3625.1,3625.0,0.27557]
[1732895151002,3.48336,3625.1,3625.0,0.27557]
[1732895151402,3.2078,3625.1,3624.5,0.002]
[1732895151603,0.68885,3625.5,3624.8,0.27558]
[1732895151604,2.628699,3624.9,3624.8,0.27558]
[1732895151906,2.628699,3624.9,3624.5,0.002]
[1732895151907,3.2078,3624.6,3624.5,0.27561]
[1732895153905,3.2078,3624.6,3624.0,0.68911]
[1732895154203,3.2078,3624.1,3624.0,0.27564]
[1732895154598,3.2078,3624.1,3624.0,41.07564]
[1732895154898,3.2078,3624.1,3624.0,0.27564]
[1732895157098,5.836499,3624.1,3624.0,0.27564]
[1732895157406,0.27574,3622.8,3622.7,0.27574]
[1732895157699,5.836499,3623.0,3621.8,1.7037]
[1732895157906,3.2078,3622.5,3622.0,0.68949]
[1732895158097,3.2078,3622.5,3622.4,0.27577]
[1732895163109,3.2078,3622.5,3622.0,40.8]
[1732895163307,3.2078,3622.5,3621.5,0.68959]
[1732895163603,3.2078,3622.5,3620.7,1.98397]
[1732895163604,2.628699,3621.7,3620.4,4.31635496]
[1732895163804,3.2078,3620.7,3620.6,0.2759]
[1732895164103,3.8309,3621.6,3621.0,0.27587]
[1732895164104,3.2078,3621.1,3621.0,0.27587]
[1732895165108,0.27588,3621.0,3620.5,0.2759]
[1732895165407,1.228,3621.2,3620.2,0.002]
[1732895165408,3.2078,3620.6,3620.2,0.002]
[1732895165707,3.48371,3620.6,3620.2,0.27793]
[1732895166002,0.8303,3620.5,3620.4,0.27592]
[1732895166202,3.2078,3620.6,3620.5,0.27591]
[1732895166404,4.4358,3620.6,3620.5,0.27591]
[1732895167299,4.4358,3620.6,3620.2,0.002]
[1732895167300,4.4358,3620.6,3620.4,0.27591]
[1732895167505,4.4358,3620.6,3620.4,0.27592]
[1732895167805,4.4358,3620.6,3620.5,0.27588]
[1732895168705,0.8431,3621.6,3620.3,2.628699]
[1732895168706,3.2078,3621.6,3620.3,2.628699]
[1732895168913,1.228,3622.0,3621.9,0.27578]
[1732895169123,1.228,3622.0,3621.9,41.07578]
[1732895169606,4.0808,3622.5,3621.9,41.07578]
[1732895169607,3.2078,3622.5,3622.4,0.27574]
[1732895170813,3.2078,3622.5,3621.9,40.8]
[1732895171005,3.2078,3622.1,3622.0,0.27577]
[1732895171511,3.2078,3622.5,3621.5,40.8]
[1732895171708,4.4358,3622.5,3622.4,0.27574]
[1732895172007,4.4358,3622.5,3621.8,0.68945]
[1732895172008,3.2078,3623.0,3622.2,3.2078]
[1732895172213,3.2078,3623.0,3621.4,0.8766]
[1732895172214,3.2078,3622.7,3621.7,3.2078]
[1732895172410,3.2078,3622.7,3622.6,0.27572]
[1732895172411,5.836499,3622.7,3622.6,0.27572]
[1732895172612,7.064499,3622.7,3622.6,0.27572]
[1732895172906,0.27572,3622.6,3621.7,3.2078]
[1732895173104,3.2078,3622.3,3622.1,0.27576]
[1732895173309,2.628699,3622.2,3622.0,0.27576]
[1732895173506,2.628699,3622.2,3621.4,0.8766]
[1732895173707,5.836499,3621.5,3621.4,0.27581]
[1732895174605,7.064499,3621.9,3621.8,0.27578]
[1732895174801,0.27579,3621.8,3621.5,0.2758]
[1732895175005,7.340279,3621.9,3621.7,0.27579]
[1732895175207,2.904489,3621.8,3620.9,0.68963]
[1732895175410,2.628699,3621.8,3621.1,0.68959]
[1732895175614,2.904489,3621.8,3621.6,0.2758]
[1732895175809,2.628699,3621.8,3620.8,3.2078]
[1732895176112,0.22952483,3622.3,3622.1,0.27576]
[1732895176113,2.628699,3622.2,3622.1,0.27576]
[1732895176305,2.628699,3622.6,3622.5,0.27573]
[1732895176505,2.628699,3622.6,3621.0,0.68962]
[1732895176506,1.228,3622.8,3622.2,3.2078]
[1732895176711,1.228,3622.8,3622.7,0.27571]
[1732895177006,5.836499,3622.8,3622.7,0.27571]
[1732895178606,2.59,3623.3,3621.8,40.8]
[1732895178607,1.228,3623.0,3622.3,3.2078]
[1732895178814,1.228,3623.0,3622.9,0.2757]
[1732895179421,0.50786622,3623.4,3622.5,3.2078]
[1732895179422,0.002,3623.4,3623.3,0.27567]
[1732895180308,0.002,3623.4,3622.7,0.8783]
[1732895180309,0.27766,3623.4,3623.2,0.27567]
[1732895180508,5.836499,3623.6,3622.7,0.8783]
[1732895180509,7.043499,3623.6,3623.4,0.27566]